bitfinex-derivatives/quotes_SOLF0:USTF0_20250914
["timestamp","ask_amount","ask_price","bid_price","bid_amount"]
[1757829665045,6.65,247.79,247.75,13.63885836]
[1757829665449,6.65,247.79,247.76,6.9]
[1757829666542,400.0,247.8,247.76,6.9]
[1757829666738,400.0,247.8,247.76,6.73885836]
[1757829666939,400.0,247.8,247.77,6.9]
[1757829667143,400.0,247.8,247.76,6.73885836]
[1757829667743,400.0,247.8,247.79,6.9]
[1757829668550,400.0,247.8,247.79,13.63885836]
[1757829669548,400.0,247.8,247.79,14.03885836]
[1757829669852,400.0,247.8,247.79,7.3]
[1757829672154,400.0,247.8,247.79,13.98841465]
[1757829672554,400.0,247.8,247.79,7.3]
[1757829674858,341.19645932,247.8,247.79,16.22493044]
[1757829675155,330.32101992,247.8,247.79,7.3]
[1757829675359,306.14050694,247.8,247.79,7.3]
[1757829675858,281.95999396,247.8,247.79,7.3]
[1757829676050,257.77948098,247.8,247.79,7.3]
[1757829676559,228.598968,247.8,247.79,7.3]
[1757829676962,204.41845502,247.8,247.79,7.3]
[1757829677960,204.41845502,247.8,247.79,15.7859202]
[1757829678160,204.41845502,247.8,247.79,6.9]
[1757829678357,204.41845502,247.8,247.79,105.24]
[1757829678960,204.41845502,247.8,247.79,6.9]
[1757829679155,199.41845502,247.8,247.79,105.22]
[1757829680269,199.41845502,247.8,247.79,105.62]
[1757829682064,199.41845502,247.8,247.79,105.22]
[1757829683160,194.41845502,247.8,247.79,105.22]
[1757829684360,194.41845502,247.8,247.79,105.62]
[1757829685965,189.41845502,247.8,247.79,105.62]
[1757829686566,6.65,247.79,247.78,6.65712611]
[1757829686869,7.47430528,247.79,247.78,98.34]
[1757829687768,6.65,247.79,247.78,98.34]
[1757829687969,190.2427603,247.8,247.78,98.34]
[1757829689770,6.78,247.79,247.78,98.34]
[1757829691665,190.2427603,247.8,247.78,98.34]
[1757829691869,6.78,247.79,247.78,98.34]
[1757829695481,7.60430528,247.79,247.76,277.65712611]
[1757829695678,6.78,247.78,247.77,98.32]
[1757829695981,7.60430528,247.79,247.77,98.32]
[1757829696979,6.78,247.77,247.76,277.65712611]
[1757829697172,6.78,247.77,247.76,369.36]
[1757829698475,0.8,247.77,247.76,369.36]
[1757829699281,0.82430528,247.79,247.76,98.36]
[1757829700077,0.82430528,247.79,247.76,105.01712611]
[1757829701378,6.78,247.78,247.76,105.01712611]
[1757829703779,6.78,247.78,247.76,98.36]
[1757829704279,6.78,247.78,247.76,105.01712611]
[1757829704775,6.78,247.78,247.76,98.36]
[1757829706480,6.78,247.78,247.76,105.01712611]
[1757829707277,6.78,247.78,247.77,6.65712611]
[1757829707577,6.78,247.78,247.76,105.01712611]
[1757829707781,0.82430528,247.79,247.76,105.01712611]
[1757829707979,0.8,247.78,247.76,105.01712611]
[1757829708176,0.8,247.78,247.77,6.65712611]
[1757829708979,189.41845502,247.8,247.77,6.65712611]
[1757829709177,190.21845502,247.8,247.78,98.3]
[1757829709380,190.21845502,247.8,247.78,104.95712611]
[1757829711683,190.21845502,247.8,247.79,6.65712611]
[1757829711994,190.21845502,247.8,247.78,98.3]
[1757829715886,196.99845502,247.8,247.78,98.3]
[1757829716887,190.21845502,247.8,247.78,98.3]
[1757829717087,6.78,247.79,247.78,98.3]
[1757829718083,190.21845502,247.8,247.78,98.3]
[1757829718985,189.41845502,247.8,247.78,98.3]
[1757829722587,172.41559913,247.8,247.78,107.1859202]
[1757829722791,172.41559913,247.8,247.78,99.12430528]
[1757829723896,167.37795469,247.8,247.78,99.12430528]
[1757829724190,167.37795469,247.8,247.78,108.01022548]
[1757829724597,162.34078369,247.8,247.79,8.8859202]
[1757829724895,157.34078369,247.8,247.79,8.8859202]
[1757829725298,163.89078369,247.8,247.78,108.01022548]
[1757829725497,163.89078369,247.8,247.78,99.12430528]
[1757829725795,157.34078369,247.8,247.78,99.12430528]
[1757829725999,157.34078369,247.8,247.78,98.3]
[1757829726197,157.34078369,247.8,247.79,8.8859202]
[1757829727002,163.89078369,247.8,247.79,8.8859202]
[1757829727604,157.34078369,247.8,247.79,8.8859202]
[1757829728207,157.34078369,247.8,247.78,107.1859202]
[1757829728501,6.55,247.79,247.78,98.3]
[1757829729308,157.34078369,247.8,247.78,98.3]
[1757829731408,157.34078369,247.8,247.79,0.82430528]
[1757829731906,109.3651549,247.8,247.79,12.92430528]
[1757829732610,92.36667047,247.8,247.79,12.92430528]
[1757829732800,60.1110324,247.8,247.79,12.5]
[1757829733109,35.93539433,247.8,247.79,13.32430528]
[1757829733504,11.76607363,247.8,247.79,13.32430528]
[1757829733810,3.68607363,247.8,247.79,13.32430528]
[1757829734006,6.55,247.89,247.79,13.32430528]
[1757829734211,7.35,247.89,247.82,12.92430528]
[1757829734412,7.35,247.89,247.83,110.44]
[1757829734611,7.35,247.89,247.83,110.46688532]
[1757829734909,6.55,247.89,247.83,110.46688532]
[1757829735107,7.37430528,247.93,247.83,119.36246285]
[1757829735409,12.05607699,248.29,247.93,12.1]
[1757829735608,0.8,248.09,248.02,0.82430528]
[1757829735801,0.8,248.09,248.07,9.56723413]
[1757829736002,0.82430528,248.14,248.08,8.86723413]
[1757829736309,0.86,248.18,248.12,0.00365303]
[1757829736613,0.82430528,248.13,248.12,0.00365303]
[1757829736810,0.82430528,248.13,248.06,33.21315824]
[1757829737010,0.82430528,248.11,248.06,33.21315824]
[1757829737210,0.86,248.18,248.06,33.21315824]
[1757829737403,0.82430528,248.09,248.06,33.21315824]
[1757829738004,6.55,248.08,247.99,8.86723413]
[1757829738208,6.55,248.08,248.0,53.86]
[1757829738404,0.82430528,248.09,248.0,53.86]
[1757829738707,6.55,248.08,248.0,53.86]
[1757829739113,7.37430528,248.08,248.0,53.86]
[1757829739309,6.55,248.08,248.0,53.86]
[1757829739510,6.55,248.08,248.01,0.82430528]
[1757829740412,6.55,248.16,248.0,53.86]
[1757829740606,6.55,248.16,248.01,65.84]
[1757829740815,2.10570191,248.17,248.01,65.84]
[1757829741307,6.55,248.16,248.01,65.84]
[1757829741713,2.10570191,248.17,248.01,65.84]
[1757829741913,1.28570191,248.13,248.01,65.84]
[1757829742110,6.55,248.12,248.01,65.84]
[1757829742309,1.28570191,248.13,248.01,65.84]
[1757829742516,6.55,248.12,248.01,65.84]
[1757829742717,6.55,248.12,247.98,12.07235639]
[1757829742915,6.55,248.12,247.99,78.44]
[1757829743115,1.28570191,248.13,247.99,78.44]
[1757829743514,6.55,248.12,247.99,78.44]
[1757829743920,1.28570191,248.13,247.99,78.44]
[1757829744413,1.28570191,248.16,247.99,78.44]
[1757829744812,6.55,248.15,247.99,78.44]
[1757829745016,1.28570191,248.16,247.99,78.44]
[1757829745218,6.55,248.15,247.99,78.44]
[1757829745414,6.55,248.15,247.96,8.25570191]
[1757829745622,9.44570191,248.16,247.97,76.28]
[1757829746018,6.55,248.15,247.97,76.28]
[1757829746419,9.44570191,248.16,247.97,76.28]
[1757829746620,12.11,248.32,248.0,1.28570191]
[1757829746921,6.55,248.2,248.01,6.97]
[1757829747116,6.55,248.18,248.01,6.97]
[1757829750221,6.52,248.16,248.01,6.97]
[1757829751422,6.52,248.16,248.03,1.28570191]
[1757829751622,6.52,248.16,247.99,11.12]
[1757829751623,6.52,248.16,248.04,6.97]
[1757829751818,6.52,248.16,248.05,1.28570191]
[1757829752012,6.52,248.16,248.04,6.97]
[1757829752722,6.52,248.16,248.02,1.28570191]
[1757829756424,6.52,248.16,248.03,6.97]
[1757829759922,6.52,248.16,248.07,6.97]
[1757829768436,6.52,248.27,248.11,6.97]
[1757829768631,34.32,248.27,248.11,6.97]
[1757829768935,54.4,248.29,248.14,8.25570191]
[1757829769136,6.52,248.28,248.14,8.25570191]
[1757829769335,54.4,248.29,248.14,8.25570191]
[1757829769931,7.80570191,248.28,248.11,5.70548012]
[1757829770331,7.80570191,248.28,248.11,1.28570191]
[1757829771436,7.80570191,248.28,248.1,4.41977821]
[1757829772734,6.52,248.28,248.12,4.41977821]
[1757829772937,6.52,248.28,248.15,1.28570191]
[1757829773138,6.52,248.28,248.15,4.41977821]
[1757829773438,6.52,248.28,248.14,4.41977821]
[1757829774040,6.52,248.28,248.15,4.41977821]
[1757829774749,6.52,248.28,248.16,4.41977821]
[1757829774946,6.52,248.28,248.16,11.38977821]
[1757829775138,28.4,248.3,248.16,11.38977821]
[1757829775139,6.52,248.29,248.16,11.38977821]
[1757829775338,6.52,248.29,248.17,4.41977821]
[1757829777242,6.52,248.29,248.18,4.41977821]
[1757829779242,6.52,248.29,248.19,4.41977821]
[1757829779847,272.18570191,248.38,248.23,10.84977821]
[1757829780046,6.78,248.37,248.23,10.84977821]
[1757829780248,6.78,248.37,248.24,4.41977821]
[1757829781749,270.9,248.38,248.23,10.84977821]
[1757829781951,6.78,248.34,248.22,4.41977821]
[1757829782447,99.94,248.33,248.22,4.41977821]
[1757829782647,6.78,248.32,248.22,4.41977821]
[1757829783053,6.78,248.3,248.21,4.41977821]
[1757829783256,6.78,248.3,248.18,4.41977821]
[1757829784045,6.78,248.3,248.17,4.41977821]
[1757829784348,6.78,248.3,248.15,4.41977821]
[1757829784851,1.28570191,248.27,248.14,10.84977821]
[1757829785046,6.78,248.22,248.11,4.41977821]
[1757829785253,6.78,248.18,248.08,4.41977821]
[1757829786648,6.78,248.18,248.07,4.41977821]
[1757829787457,6.78,248.16,248.07,4.41977821]
[1757829787850,6.78,248.16,248.06,10.84977821]
[1757829791349,6.78,248.12,248.04,4.41977821]
[1757829791546,38.57,248.21,248.04,4.41977821]
[1757829791547,1.28570191,248.14,248.04,4.41977821]
[1757829791751,1.28570191,248.14,248.06,4.41977821]
[1757829792552,1.28570191,248.14,248.05,10.84977821]
[1757829792747,1.28570191,248.14,248.05,6.43]
[1757829792950,1.28570191,248.14,248.05,10.84977821]
[1757829793853,6.78,248.09,248.03,4.41977821]
[1757829794054,6.78,248.09,248.02,4.41977821]
[1757829794452,6.78,248.09,248.01,4.41977821]
[1757829795745,6.78,248.09,248.0,4.41977821]
[1757829798261,6.78,248.09,247.99,4.41977821]
[1757829798462,34.70570191,248.13,248.0,4.41977821]
[1757829798754,6.78,248.08,248.01,6.43]
[1757829798963,6.78,248.08,247.99,4.41977821]
[1757829799259,6.78,248.04,247.98,4.41977821]
[1757829799464,6.78,248.04,247.95,4.41977821]
[1757829800260,1.28570191,248.03,247.95,4.41977821]
[1757829800456,0.82382218,248.01,247.94,4.41977821]
[1757829800662,6.78,248.0,247.98,3.32746803]
[1757829801462,7.60382218,248.01,247.95,3.32746803]
[1757829801967,12.11,248.12,247.94,3.32746803]
[1757829801968,7.60382218,247.98,247.94,3.32746803]
[1757829802358,0.82382218,247.98,247.93,3.32746803]
[1757829802564,6.78,247.97,247.93,3.32746803]
[1757829803059,6.78,247.97,247.93,9.75746803]
[1757829803269,0.82382218,247.98,247.94,6.43]
[1757829804960,0.82382218,248.0,247.94,6.43]
[1757829808468,6.48,248.02,247.94,6.43]
[1757829808767,0.82382218,248.01,247.94,6.43]
[1757829809664,0.82382218,247.98,247.94,6.43]
[1757829809967,7.30382218,247.98,247.94,6.43]
[1757829810665,0.82382218,247.95,247.89,6.62]
[1757829811563,6.48,247.99,247.89,6.62]
[1757829811869,0.82382218,247.96,247.89,6.62]
[1757829814667,0.82382218,247.97,247.89,6.62]
[1757829815268,7.30382218,247.99,247.89,6.62]
[1757829820377,6.48,247.99,247.89,6.62]
[1757829820671,6.48,247.95,247.89,6.62]
[1757829820878,0.82382218,247.92,247.85,6.62]
[1757829823072,270.88,248.04,247.85,6.62]
[1757829823278,7.30382218,247.97,247.87,6.62]
[1757829823474,7.30382218,247.97,247.88,6.62]
[1757829823668,6.48,247.97,247.88,6.62]
[1757829826578,0.82382218,248.0,247.88,9.94746803]
[1757829826773,6.48,247.96,247.88,6.62]
[1757829828478,6.48,247.96,247.88,9.94746803]
[1757829830376,0.82382218,247.95,247.88,9.94746803]
[1757829831380,0.82382218,247.95,247.89,3.32746803]
[1757829832884,0.82382218,247.95,247.88,9.94746803]
[1757829833377,0.82382218,247.92,247.89,3.32746803]
[1757829833582,7.30382218,247.92,247.86,3.32746803]
[1757829833782,7.30382218,247.92,247.85,3.32746803]
[1757829834282,0.82382218,247.89,247.85,3.32746803]
[1757829834484,0.82382218,247.89,247.85,9.94746803]
[1757829834683,7.30382218,247.89,247.85,9.94746803]
[1757829835283,6.48,247.85,247.84,3.32746803]
[1757829835579,6.48,247.85,247.82,3.32746803]
[1757829835878,0.82382218,247.83,247.78,3.32746803]
[1757829836074,6.48,247.82,247.78,9.94746803]
[1757829836479,6.48,247.82,247.78,6.62]
[1757829836679,7.30382218,247.83,247.77,3.32746803]
[1757829837076,0.82382218,247.8,247.77,3.32746803]
[1757829837276,0.82382218,247.8,247.73,3.32746803]
[1757829837481,7.30382218,247.76,247.73,3.32746803]
[1757829837686,7.30382218,247.76,247.72,3.32746803]
[1757829838086,7.30382218,247.76,247.72,10.08746803]
[1757829838787,6.73,247.75,247.71,3.32746803]
[1757829839188,7.55382218,247.73,247.7,3.32746803]
[1757829839390,7.55382218,247.73,247.68,10.02746803]
[1757829839683,7.55382218,247.73,247.68,6.7]
[1757829839887,0.82382218,247.73,247.68,6.7]
[1757829840090,6.73,247.72,247.68,6.7]
[1757829840785,7.55382218,247.73,247.66,3.32746803]
[1757829840990,7.55382218,247.73,247.64,6.7]
[1757829841784,7.55382218,247.73,247.63,0.70254065]
[1757829841785,0.82382218,247.7,247.63,0.70254065]
[1757829841985,6.73,247.69,247.63,0.70254065]
[1757829842391,6.73,247.69,247.59,6.7]
[1757829846791,7.55382218,247.69,247.59,6.7]
[1757829848797,0.82382218,247.66,247.58,0.70272508]
[1757829849296,6.73,247.67,247.58,0.70272508]
[1757829849695,6.73,247.67,247.57,0.82382218]
[1757829850894,6.73,247.67,247.55,6.7]
[1757829851200,6.73,247.67,247.55,7.52382218]
[1757829851802,7.55382218,247.67,247.55,7.52382218]
[1757829853606,6.73,247.67,247.55,7.52382218]
[1757829853810,6.73,247.63,247.55,6.7]
[1757829854103,6.73,247.63,247.51,6.7]
[1757829854299,6.4,247.65,247.51,6.7]
[1757829854300,0.82382218,247.58,247.51,6.7]
[1757829854500,6.73,247.57,247.48,6.7]
[1757829855208,0.82382218,247.55,247.48,6.7]
[1757829855401,7.55382218,247.55,247.48,6.7]
[1757829855602,6.73,247.55,247.48,6.7]
[1757829856098,6.73,247.55,247.45,0.7030303]
[1757829856300,7.55382218,247.55,247.44,6.7]
[1757829857096,0.82382218,247.53,247.44,6.7]
[1757829857308,6.73,247.52,247.44,6.7]
[1757829858601,0.82382218,247.5,247.38,6.7]
[1757829858807,6.73,247.49,247.38,6.7]
[1757829860405,0.82382218,247.44,247.34,6.7]
[1757829860709,6.73,247.45,247.36,0.82382218]
[1757829860909,34.97,247.45,247.36,0.82382218]
[1757829861110,61.37,247.45,247.36,0.82382218]
[1757829861304,6.73,247.45,247.37,0.82382218]
[1757829862212,107.31,247.45,247.37,0.82382218]
[1757829862512,107.31,247.45,247.35,1.2929408]
[1757829862804,6.73,247.45,247.34,6.7]
[1757829863011,6.73,247.53,247.39,6.7]
[1757829863210,6.73,247.53,247.42,1.2929408]
[1757829863606,107.31,247.53,247.43,6.7]
[1757829863905,6.73,247.53,247.43,6.7]
[1757829864410,107.35,247.53,247.43,6.7]
[1757829864913,6.73,247.53,247.43,6.7]
[1757829865411,6.73,247.57,247.43,6.7]
[1757829865613,33.28,247.56,247.43,6.7]
[1757829865911,6.73,247.57,247.43,6.7]
[1757829866208,6.73,247.55,247.43,6.7]
[1757829866413,1.2929408,247.53,247.43,6.7]
[1757829866613,6.73,247.52,247.34,6.7]
[1757829867010,6.73,247.59,247.43,6.7]
[1757829868511,8.0229408,247.59,247.43,6.7]
[1757829871716,6.43,247.57,247.43,6.7]
[1757829873611,6.43,247.54,247.43,6.7]
[1757829874716,6.43,247.5,247.37,9.6]
[1757829874922,6.43,247.5,247.38,6.87]
[1757829878020,6.43,247.46,247.38,6.87]
[1757829880222,1.2929408,247.43,247.33,6.87]
[1757829881623,1.2929408,247.43,247.33,3.3021848]
[1757829881823,1.2929408,247.43,247.34,6.87]
[1757829882724,6.43,247.44,247.34,6.87]
[1757829882918,1.2929408,247.46,247.34,6.87]
[1757829883324,1.2929408,247.46,247.34,10.1721848]
[1757829883527,6.43,247.48,247.35,10.1721848]
[1757829883730,7.7229408,247.48,247.36,6.87]
[1757829884328,7.7229408,247.48,247.36,3.3021848]
[1757829884532,7.7229408,247.48,247.37,6.87]
[1757829886926,7.7229408,247.48,247.36,3.3021848]
[1757829887133,1.2929408,247.43,247.34,3.3021848]
[1757829887425,6.43,247.44,247.34,3.3021848]
[1757829887630,1.2929408,247.48,247.37,6.87]
[1757829887931,7.7229408,247.49,247.39,6.87]
[1757829889335,7.7229408,247.49,247.39,10.1721848]
[1757829889734,7.7229408,247.49,247.4,3.3021848]
[1757829889936,1.2929408,247.53,247.42,3.3021848]
[1757829891237,1.2929408,247.53,247.43,3.3021848]
[1757829892337,1.2929408,247.53,247.44,3.3021848]
[1757829892739,0.03081014,247.51,247.46,0.02874438]
[1757829892938,1.2929408,247.49,247.46,0.02874438]
[1757829893134,6.43,247.48,247.46,0.02874438]
[1757829893434,1.2929408,247.49,247.46,0.02874438]
[1757829893831,6.43,247.48,247.46,0.02874438]
[1757829894034,1.2929408,247.49,247.46,0.02874438]
[1757829895034,6.43,247.48,247.46,0.02874438]
[1757829895528,1.2929408,247.49,247.46,0.02874438]
[1757829896129,6.83,247.48,247.46,0.02874438]
[1757829896341,6.43,247.47,247.46,0.02874438]
[1757829897631,6.83,247.47,247.46,0.02874438]
[1757829898036,6.83,247.47,247.39,3.3021848]
[1757829898344,6.33,247.42,247.39,3.3021848]
[1757829898540,6.33,247.42,247.37,3.3021848]
[1757829898744,7.6229408,247.43,247.37,3.3021848]
[1757829899042,7.6229408,247.43,247.36,3.3021848]
[1757829899343,0.02894891,247.42,247.36,3.3021848]
[1757829901343,6.97894891,247.42,247.36,3.3021848]
[1757829902141,6.97894891,247.42,247.35,3.3021848]
[1757829908154,0.02894891,247.42,247.37,3.3021848]
[1757829908545,102.2429408,247.46,247.38,6.47]
[1757829908745,0.03081031,247.42,247.38,9.7721848]
[1757829908951,0.03081031,247.42,247.39,6.47]
[1757829909461,6.95,247.41,247.35,3.3021848]
[1757829909754,0.03081031,247.42,247.36,3.3021848]
[1757829909956,0.03081031,247.42,247.37,3.3021848]
[1757829910261,1.2929408,247.44,247.38,3.3021848]
[1757829910446,1.2929408,247.44,247.38,9.7721848]
[1757829910650,0.02962945,247.42,247.39,6.47]
[1757829910850,6.97962945,247.42,247.38,6.47]
[1757829911155,6.95,247.41,247.37,3.35880866]
[1757829911752,6.95,247.41,247.36,3.35880866]
[1757829911948,1.2929408,247.4,247.35,3.35880866]
[1757829912152,8.2429408,247.4,247.35,3.35880866]
[1757829912353,6.95,247.39,247.35,3.35880866]
[1757829912753,1.2929408,247.4,247.35,3.35880866]
[1757829913062,6.95,247.39,247.35,3.35880866]
[1757829913558,1.2929408,247.4,247.35,3.35880866]
[1757829914055,6.95,247.39,247.35,3.35880866]
[1757829914652,6.95,247.39,247.34,9.82880866]
[1757829914956,8.2429408,247.4,247.34,9.82880866]
[1757829915359,6.95,247.4,247.34,9.82880866]
[1757829915559,6.95,247.4,247.35,3.35880866]
[1757829916458,102.20257025,247.42,247.35,3.35880866]
[1757829916660,6.95,247.41,247.35,3.35880866]
[1757829918261,109.11257025,247.42,247.36,3.35880866]
[1757829918563,8.27257025,247.42,247.36,3.35880866]
[1757829918756,6.95,247.4,247.35,3.35880866]
[1757829919063,100.82,247.41,247.35,3.35880866]
[1757829919262,6.95,247.4,247.31,6.47]
[1757829922369,0.82813785,247.36,247.31,6.47]
[1757829922567,0.82813785,247.36,247.3,6.47]
[1757829922970,0.03056514,247.35,247.31,6.47]
[1757829923563,0.03056514,247.35,247.31,10.88977821]
[1757829923764,0.03056514,247.35,247.34,6.47]
[1757829923959,0.03056514,247.35,247.34,10.88977821]
[1757829924170,0.82813785,247.43,247.34,11.35468784]
[1757829924371,0.82813785,247.43,247.34,10.95468784]
[1757829924668,0.82813785,247.43,247.35,10.95468784]
[1757829924870,0.82813785,247.43,247.36,6.47]
[1757829925265,6.95,247.48,247.36,6.47]
[1757829925469,0.82813785,247.49,247.39,4.48468784]
[1757829925666,0.82813785,247.49,247.4,6.47]
[1757829925867,0.82813785,247.49,247.41,6.47]
[1757829929175,44.42153101,247.65,247.41,6.47]
[1757829929176,0.82813785,247.54,247.44,4.48468784]
[1757829929570,0.82813785,247.54,247.45,4.48468784]
[1757829929881,0.82813785,247.54,247.46,6.75]
[1757829931672,100.64,247.56,247.48,4.48468784]
[1757829931875,100.64,247.56,247.49,6.75]
[1757829932076,100.64,247.56,247.5,6.75]
[1757829934574,0.82813785,247.59,247.5,6.75]
[1757829937879,0.82813785,247.59,247.5,11.23468784]
[1757829938178,0.82813785,247.59,247.52,6.75]
[1757829939276,0.82813785,247.62,247.52,11.23468784]
[1757829939571,0.82813785,247.59,247.53,6.75]
[1757829939778,0.82813785,247.56,247.5,4.48468784]
[1757829939971,0.82813785,247.56,247.5,6.75]
[1757829949597,0.82813785,247.59,247.5,6.75]
[1757829949886,0.82813785,247.56,247.5,6.75]
[1757829950091,0.82813785,247.53,247.44,6.75]
[1757829950294,0.82813785,247.5,247.44,6.75]
[1757829952692,0.82813785,247.47,247.44,6.75]
[1757829953295,6.81,247.52,247.39,6.75]
[1757829953688,0.82813785,247.51,247.39,6.75]
[1757829954494,0.82813785,247.51,247.39,18.57727838]
[1757829954793,0.82813785,247.51,247.4,6.75]
[1757829961397,7.01,247.54,247.41,6.63]
[1757829961398,7.83813785,247.54,247.41,6.63]
[1757829961597,12.13,247.67,247.46,6.63]
[1757829961598,0.82813785,247.58,247.46,6.63]
[1757829961798,7.83813785,247.58,247.46,6.63]
[1757829963899,0.82813785,247.55,247.46,6.63]
[1757829964099,7.01,247.54,247.46,6.63]
[1757829964302,0.82813785,247.52,247.42,6.63]
[1757829964497,7.01,247.51,247.42,6.63]
[1757829964799,7.01,247.48,247.38,11.11468784]
[1757829964998,0.82813785,247.46,247.38,6.63]
[1757829965199,7.83813785,247.46,247.38,6.63]
[1757829966297,0.82813785,247.49,247.38,6.63]
[1757829966602,0.82813785,247.49,247.39,4.48468784]
[1757829966900,0.82813785,247.49,247.4,11.11468784]
[1757829967098,0.82813785,247.49,247.41,4.48468784]
[1757829968202,0.82813785,247.49,247.42,4.48468784]
[1757829968396,0.82813785,247.49,247.43,6.63]
[1757829969105,0.82813785,247.52,247.43,11.11468784]
[1757829969403,0.82813785,247.52,247.45,4.48468784]
[1757829969597,0.82813785,247.52,247.44,4.48468784]
[1757829971394,0.82813785,247.49,247.43,4.48468784]
[1757829971596,7.01,247.45,247.41,4.48468784]
[1757829971902,7.83813785,247.46,247.4,4.48468784]
[1757829972693,8.16,247.57,247.4,4.48468784]
[1757829972694,0.82813785,247.48,247.4,4.48468784]
[1757829973102,0.82813785,247.48,247.41,4.48468784]
[1757829973604,0.82813785,247.48,247.4,4.48468784]
[1757829973901,7.01,247.47,247.4,4.48468784]
[1757829975905,0.82813785,247.53,247.44,4.48468784]
[1757829976301,7.01,247.52,247.43,6.63]
[1757829978406,7.01,247.52,247.43,11.11468784]
[1757829978604,7.01,247.52,247.45,4.48468784]
[1757829978806,7.01,247.59,247.46,6.63]
[1757829978997,0.82813785,247.58,247.46,6.63]
[1757829979200,0.82813785,247.58,247.47,4.48468784]
[1757829979399,7.01,247.57,247.47,4.48468784]
[1757829980104,7.01,247.57,247.49,4.48468784]
[1757829980306,7.01,247.57,247.5,4.48468784]
[1757829981009,7.01,247.57,247.49,11.11468784]
[1757829981901,0.82813785,247.6,247.49,11.11468784]
[1757829982104,7.01,247.62,247.51,6.63]
[1757829983907,7.01,247.62,247.51,11.11468784]
[1757829984207,7.01,247.62,247.52,4.48468784]
[1757829984605,27.22,247.63,247.53,6.63]
[1757829984808,27.22,247.63,247.47,1.29117533]
[1757829984809,27.22,247.63,247.55,6.63]
[1757829985306,27.22,247.63,247.54,4.48468784]
[1757829985307,7.01,247.62,247.54,4.48468784]
[1757829988708,7.01,247.62,247.54,11.50468784]
[1757829993824,1.29117533,247.59,247.53,4.48468784]
[1757829994011,6.46,247.58,247.5,4.48468784]
[1757829994514,6.46,247.58,247.49,11.50468784]
[1757829998314,1.29117533,247.59,247.49,11.50468784]
[1757829998519,6.46,247.58,247.49,11.50468784]
[1757830002724,1.29117533,247.59,247.51,7.02]
[1757830003029,6.46,247.62,247.53,7.02]
[1757830008633,6.46,247.62,247.53,11.50468784]
[1757830009032,6.46,247.62,247.54,4.48468784]
[1757830009331,1.29117533,247.65,247.55,7.02]
[1757830009531,6.46,247.64,247.55,7.02]
[1757830012635,6.46,247.64,247.55,11.50468784]
[1757830013633,6.46,247.64,247.57,7.02]
[1757830013837,100.0,247.68,247.62,7.02]
[1757830014234,106.46,247.68,247.62,7.02]
[1757830014739,106.46,247.68,247.6,4.48468784]
[1757830014740,7.75117533,247.67,247.6,4.48468784]
[1757830015043,7.75117533,247.67,247.59,4.48468784]
[1757830015536,6.46,247.66,247.59,4.48468784]
[1757830016029,6.46,247.66,247.58,11.50468784]
[1757830018640,6.46,247.66,247.58,4.48468784]
[1757830019634,6.46,247.66,247.57,4.48468784]
[1757830020236,6.46,247.66,247.58,4.48468784]
[1757830020934,6.32,247.62,247.56,4.48468784]
[1757830021135,6.32,247.62,247.54,11.31468784]
[1757830021932,6.32,247.62,247.55,4.48468784]
[1757830022137,6.32,247.62,247.54,11.31468784]
[1757830022437,6.32,247.62,247.55,4.48468784]
[1757830023737,6.32,247.62,247.57,4.48468784]
[1757830023938,1.29117533,247.67,247.6,4.48468784]
[1757830024135,1.29117533,247.67,247.61,4.48468784]
[1757830024340,1.29117533,247.67,247.63,6.36]
[1757830028050,6.32,247.74,247.62,6.36]
[1757830028348,1.29117533,247.73,247.63,10.84468784]